bitfinex/quotes_ETHUSD_20260125
["timestamp","ask_amount","ask_price","bid_price","bid_amount"]
[1769382661469,0.001,2804.0,2802.1,12.77110177]
[1769382661470,12.77688943,2803.6,2802.1,12.77110177]
[1769382661649,12.79493675,2803.5,2802.2,12.77107307]
[1769382661855,0.89177427,2803.4,2802.2,11.87891989]
[1769382662374,13.6686637,2803.4,2802.2,11.87891989]
[1769382663560,2.02649368,2803.7,2802.2,11.87891989]
[1769382663765,0.89258925,2804.0,2802.4,12.80505887]
[1769382663972,0.001,2804.0,2802.6,12.80505887]
[1769382666185,0.001,2804.0,2802.8,12.80505887]
[1769382666388,0.70624614,2804.0,2802.9,12.80505887]
[1769382667266,11.8305107,2803.9,2802.7,0.891997]
[1769382667466,11.81246338,2803.9,2802.3,12.80505887]
[1769382667665,11.81246338,2803.7,2802.3,12.80505887]
[1769382668397,11.81246338,2803.5,2802.3,12.80505887]
[1769382669423,11.81246338,2803.5,2802.3,13.69717512]
[1769382669611,0.89169448,2803.7,2802.3,13.69717512]
[1769382669925,1.75245337,2803.6,2802.4,12.80505887]
[1769382670228,1.75245337,2803.6,2802.3,0.89211625]
[1769382670229,0.89174246,2803.5,2802.3,13.69717835]
[1769382670936,0.89174246,2803.5,2802.3,12.80505887]
[1769382671139,11.8305107,2803.4,2802.5,0.002]
[1769382671438,11.81246338,2803.4,2802.5,0.002]
[1769382671657,1.27042058,2803.3,2802.5,0.002]
[1769382672314,14.45664351,2803.6,2802.5,0.002]
[1769382675312,11.8305107,2803.5,2802.5,0.002]
[1769382675504,11.81246338,2803.5,2802.5,0.002]
[1769382676430,0.89180608,2803.3,2802.5,0.002]
[1769382677942,0.89174246,2803.5,2802.5,0.002]
[1769382678107,0.89174246,2803.5,2802.5,11.72793858]
[1769382678305,4.69266373,2803.8,2802.5,11.72793858]
[1769382678827,4.71071105,2803.8,2802.5,12.47493858]
[1769382679728,4.69266373,2803.8,2802.5,13.36698732]
[1769382679910,0.82592319,2803.7,2802.6,11.72593858]
[1769382680111,4.69264912,2803.8,2802.6,11.72593858]
[1769382680314,0.001,2803.8,2802.6,11.72593858]
[1769382680540,0.001,2803.8,2802.8,11.72593858]
[1769382683509,0.001,2803.8,2802.8,12.61790155]
[1769382683738,0.001,2803.8,2802.8,11.72793858]
[1769382683943,0.001,2803.8,2802.8,12.61989667]
[1769382685332,0.001,2803.8,2802.8,11.72793858]
[1769382685537,0.001,2803.8,2802.8,12.61990335]
[1769382685916,0.001,2803.8,2802.8,11.72793858]
[1769382687235,0.91070428,2803.8,2802.8,11.72793858]
[1769382687541,0.89264908,2803.8,2802.9,11.72593858]
[1769382687747,0.01804732,2803.7,2802.9,11.72593858]
[1769382688929,0.001,2803.8,2802.9,11.72593858]
[1769382689742,0.91069594,2803.8,2802.9,11.72593858]
[1769382690314,0.91069594,2803.8,2802.8,0.002]
[1769382690315,13.26874682,2803.8,2802.8,0.002]
[1769382690547,12.3760982,2803.6,2802.8,0.002]
[1769382690734,0.89174246,2803.5,2802.8,0.002]
[1769382691655,13.28588798,2803.5,2802.8,0.002]
[1769382691840,1.33942679,2803.7,2802.8,0.002]
[1769382692159,1.33942679,2803.7,2802.8,11.72793858]
[1769382692361,0.49070219,2803.6,2802.8,11.72793858]
[1769382692855,0.001,2803.8,2802.8,12.6198865]
[1769382693054,0.001,2804.0,2802.9,12.74791226]
[1769382693358,0.001,2804.0,2803.1,12.74791226]
[1769382694655,12.21215304,2804.0,2802.8,0.002]
[1769382694856,13.08472097,2803.9,2802.8,0.002]
[1769382695057,1.6652182,2803.8,2802.8,0.002]
[1769382695554,1.6652182,2803.8,2802.8,12.74991226]
[1769382695760,0.01804732,2803.7,2802.8,12.74991226]
[1769382696257,0.001,2804.0,2802.9,12.74791226]
[1769382696757,13.08446644,2804.8,2803.1,12.74791226]
[1769382696932,1.66497782,2804.7,2803.3,12.74791226]
[1769382698957,0.89139271,2804.6,2803.5,12.74791226]
[1769382699745,0.89139271,2804.6,2803.1,12.74791226]
[1769382699746,13.08449843,2804.6,2803.1,12.74791226]
[1769382699941,13.08449843,2804.6,2803.1,14.38677768]
[1769382700148,14.02459993,2804.5,2803.1,14.38677768]
[1769382700746,14.02459993,2804.5,2803.2,12.74791226]
[1769382701032,0.89145628,2804.4,2803.2,12.74791226]
[1769382701465,0.89126559,2805.0,2803.2,13.6397486]
[1769382701640,0.89126559,2805.0,2803.6,16.74690968]
[1769382701641,13.08437131,2805.0,2803.6,16.74690968]
[1769382701850,12.19310572,2804.8,2803.6,12.74791226]
[1769382702938,0.89136092,2804.7,2803.6,12.74791226]
[1769382703140,13.08445513,2804.8,2803.6,13.63962264]
[1769382703374,13.08445513,2804.8,2803.7,12.74791226]
[1769382704050,13.08445513,2804.8,2802.8,0.002]
[1769382704051,12.19310572,2804.0,2802.8,0.002]
[1769382704247,0.747,2804.2,2802.9,12.74791226]
[1769382704446,0.747,2804.2,2802.8,4.00099742]
[1769382704447,0.747,2804.2,2803.3,16.74690968]
[1769382705570,0.8915072,2804.3,2803.3,12.74791226]
[1769382705755,0.89147652,2804.4,2803.3,12.74791226]
[1769382706066,0.44571842,2804.3,2803.3,12.74791226]
[1769382706784,0.44571842,2804.3,2802.8,0.002]
[1769382706785,16.19210314,2804.1,2802.8,0.002]
[1769382706984,12.19310572,2804.0,2802.8,0.002]
[1769382707185,13.08472097,2803.9,2802.8,0.002]
[1769382707340,1.6651182,2803.8,2802.8,0.002]
[1769382708240,0.89158805,2804.0,2802.9,12.74791226]
[1769382708494,0.89158805,2804.0,2803.0,12.74991226]
[1769382708857,0.89158805,2804.0,2803.0,0.002]
[1769382709053,0.89167885,2803.7,2803.0,0.002]
[1769382710455,0.89167885,2803.7,2802.5,0.002]
[1769382710456,3.99899742,2803.2,2802.5,0.002]
[1769382710888,3.99899742,2803.2,2802.5,0.001]
[1769382710889,16.19210314,2803.2,2802.5,0.001]
[1769382711057,0.89186971,2803.1,2802.5,0.001]
[1769382711385,3.99899742,2802.9,2802.3,0.00100788]
[1769382711585,3.99899742,2802.9,2801.6,0.002]
[1769382711586,12.94010572,2802.9,2801.6,0.002]
[1769382711885,13.48711629,2802.8,2801.6,0.002]
[1769382713189,0.891997,2802.7,2801.6,0.002]
[1769382713490,0.891997,2802.7,2801.6,12.74991226]
[1769382715495,0.89196517,2802.8,2801.6,13.64225146]
[1769382715692,0.52067101,2802.7,2801.6,13.64225146]
[1769382716076,1.63895461,2802.9,2801.6,13.64225146]
[1769382716380,0.747,2802.9,2801.6,13.64225146]
[1769382716574,13.83204692,2802.9,2801.6,13.36595314]
[1769382717092,13.83204692,2802.9,2801.4,0.002]
[1769382717892,13.83204692,2802.9,2801.4,12.74991226]
[1769382718061,1.739974,2802.8,2801.4,12.74991226]
[1769382718891,0.128,2803.3,2801.4,12.74991226]
[1769382719692,0.89183789,2803.2,2801.6,12.74791226]
[1769382720400,0.89183789,2803.2,2801.6,12.74991226]
[1769382720585,12.19310572,2803.0,2801.6,0.002]
[1769382721909,12.19310572,2802.8,2801.6,0.002]
[1769382725495,12.13863961,2802.6,2801.6,0.002]
[1769382725694,12.13863961,2802.4,2801.4,0.002]
[1769382726268,0.891997,2802.7,2801.4,12.06577707]
[1769382726269,13.03063661,2802.7,2801.4,12.06577707]
[1769382726469,15.79429787,2802.7,2801.4,12.06577707]
[1769382726668,12.13863961,2802.6,2801.4,0.002]
[1769382727072,12.13863961,2802.6,2801.4,12.06577707]
[1769382727671,0.89206066,2802.5,2801.4,12.06577707]
[1769382728098,13.03070027,2802.5,2801.4,0.002]
[1769382728276,1.65989429,2802.4,2801.4,0.002]
[1769382730433,2.55200456,2802.4,2801.4,0.002]
[1769382731802,16.14505782,2802.0,2801.1,0.002]
[1769382732220,12.13863961,2802.0,2801.1,0.002]
[1769382732420,2.55200456,2802.4,2801.2,12.06377707]
[1769382732626,2.55200456,2802.4,2801.6,0.002]
[1769382733842,2.55198898,2802.4,2801.6,12.06577707]
[1769382734002,0.89209469,2802.4,2801.6,12.06577707]
[1769382734397,0.89206754,2802.5,2801.6,12.06577707]
[1769382736524,4.00641821,2802.3,2801.6,0.002]
[1769382737507,4.89855797,2802.3,2801.6,0.002]
[1769382737834,2.13684536,2802.3,2801.6,0.002]
[1769382738043,0.001,2802.6,2801.6,12.83277475]
[1769382738339,0.001,2802.6,2801.8,12.83077475]
[1769382738907,0.89276623,2803.5,2802.2,12.83077475]
[1769382739135,0.89274509,2803.5,2802.2,12.83077475]
[1769382739334,0.001,2803.5,2802.1,12.83077475]
[1769382739644,0.89275349,2803.5,2802.1,12.83077475]
[1769382740636,0.89275349,2803.5,2802.3,12.83077475]
[1769382741334,4.8991717,2803.5,2802.3,12.83077475]
[1769382742511,0.001,2803.5,2802.3,13.72287765]
[1769382742821,0.001,2803.5,2802.5,12.83077475]
[1769382743437,0.001,2803.5,2802.7,12.83077475]
[1769382744541,0.001,2803.5,2802.7,13.72277017]
[1769382745734,0.001,2803.3,2802.7,13.72277017]
[1769382747147,0.001,2803.3,2802.7,13.72276465]
[1769382748442,0.001,2803.5,2802.8,12.83077475]
[1769382748647,4.89899238,2804.1,2803.3,12.83077475]
[1769382748648,0.001,2804.1,2803.3,12.83077475]
[1769382749052,0.001,2804.1,2803.4,0.89177427]
[1769382749354,0.001,2804.1,2803.3,12.83077475]
[1769382749555,0.001,2804.1,2803.3,13.72257351]
[1769382749924,0.001,2804.1,2803.6,12.83077475]
[1769382750255,0.747,2804.6,2803.6,12.83077475]
[1769382751155,17.79924219,2805.1,2803.8,12.83077475]
[1769382752328,4.00641821,2804.8,2803.5,13.72249735]
[1769382752636,12.90157103,2804.7,2803.6,0.747]
[1769382752840,14.59236995,2804.7,2803.6,1.63870035]
[1769382753021,15.48373586,2804.7,2803.6,0.747]
[1769382753220,14.59236995,2804.7,2803.6,14.01710941]
[1769382753425,1.69079892,2804.7,2803.6,14.01710941]
[1769382753655,12.83714354,2805.0,2803.7,12.37841323]
[1769382753854,13.72842278,2805.0,2803.7,12.37841323]
[1769382756064,13.72842278,2805.0,2803.1,13.27026715]
[1769382757136,13.72842278,2805.0,2803.2,0.89183788]
[1769382757331,13.72842278,2805.0,2803.1,12.37841323]
[1769382757575,12.83714354,2804.0,2802.4,12.37841323]
[1769382757759,12.83714354,2803.8,2802.0,13.27262879]
[1769382758063,12.83714354,2803.8,2802.1,0.89218565]
[1769382758267,12.83714354,2803.8,2802.2,0.89215329]
[1769382758465,12.83714354,2803.8,2802.4,13.2705038]
[1769382758668,12.83714354,2803.8,2802.3,3.57039308]
[1769382758669,2.03071435,2803.7,2802.5,12.37841323]
[1769382759584,0.89171065,2803.6,2802.5,12.37841323]
[1769382760786,0.89171065,2803.6,2802.3,0.002]
[1769382761781,0.89171065,2803.6,2802.3,12.38041323]
[1769382762154,0.89171065,2803.6,2802.3,13.27253186]
[1769382762355,0.64892676,2803.5,2802.4,12.37841323]
[1769382764469,0.89177427,2803.4,2802.4,12.37841323]
[1769382765471,1.5406926,2803.5,2802.4,12.37841323]
[1769382766860,14.37783614,2803.5,2802.3,0.002]
[1769382767086,12.83714354,2803.3,2802.3,0.002]
[1769382767262,12.83714354,2803.3,2802.0,0.002]
[1769382768575,12.83714354,2803.1,2802.0,0.002]
[1769382768881,0.747,2803.0,2802.0,0.002]
[1769382769306,12.83714354,2802.9,2801.6,0.002]
[1769382769511,12.83714354,2802.7,2801.6,0.002]
[1769382769667,12.83714354,2802.7,2801.6,0.00100395]
[1769382769857,12.83714354,2802.7,2801.4,0.002]
[1769382770054,12.83714354,2802.7,2801.2,0.002]
[1769382770686,0.89202883,2802.6,2801.2,0.002]
[1769382770893,13.28315795,2802.5,2801.2,0.002]
[1769382773490,13.72923603,2802.4,2801.2,0.002]
[1769382774806,13.72923603,2802.4,2801.2,12.38041323]
[1769382777679,17.73592581,2802.4,2801.2,12.38041323]
[1769382779803,12.83714354,2802.3,2801.2,12.38041323]
[1769382779987,1.77359258,2802.2,2801.2,12.38041323]
[1769382781502,1.77359258,2802.2,2801.2,13.27288502]
[1769382781738,4.00668978,2802.4,2801.2,13.27288502]
[1769382781739,7.57393904,2803.3,2801.8,12.37841323]
[1769382781906,0.89185505,2803.2,2801.8,12.37841323]
[1769382782311,4.00668978,2803.0,2801.8,12.37841323]
[1769382782613,13.72899859,2803.2,2801.2,0.2355703]
[1769382782614,4.00668978,2802.4,2801.2,0.002]
[1769382782936,12.83714354,2802.0,2801.2,0.002]
[1769382783131,16.84383332,2801.8,2801.2,0.002]
[1769382783338,0.747,2802.1,2801.2,12.81969738]
[1769382783532,12.53690413,2802.0,2801.2,0.002]
[1769382783733,4.00668978,2801.8,2801.2,0.002]
[1769382783936,14.28048869,2801.7,2800.9,0.002]
[1769382784140,16.54359391,2801.5,2800.9,0.002]
[1769382784346,16.54359391,2801.1,2800.3,0.002]
[1769382784637,0.747,2801.0,2800.3,0.002]
[1769382784837,1.72905939,2800.9,2800.3,0.002]
[1769382785038,0.747,2801.0,2800.3,0.002]
[1769382785417,0.747,2801.3,2800.3,0.002]
[1769382785924,0.747,2801.3,2800.3,12.81969738]
[1769382786129,1.63944337,2801.3,2800.3,12.81969738]
[1769382786541,14.1763475,2801.3,2800.3,0.002]
[1769382786841,2.9222695,2801.2,2800.3,0.002]
[1769382787218,12.53690413,2801.1,2800.3,0.002]
[1769382788038,13.4294425,2801.0,2800.3,0.002]
[1769382791142,13.4294425,2801.0,2799.1,0.2335703]
[1769382791143,4.00668978,2800.5,2799.4,12.81769738]
[1769382791343,4.00668978,2800.5,2798.0,0.052]
[1769382791344,0.40066898,2800.4,2799.5,12.81769738]
[1769382791515,0.40066898,2800.4,2799.2,4.00668978]
[1769382791516,0.747,2800.7,2799.6,13.71066448]
[1769382791838,0.747,2800.7,2799.6,12.81769738]
[1769382792039,0.747,2800.7,2799.7,0.89295024]
[1769382792437,0.747,2800.7,2799.6,13.71065898]
[1769382792811,3.57028726,2800.9,2799.7,0.89295265]
[1769382793008,13.42942123,2801.1,2799.7,13.71065003]
[1769382793249,0.8925171,2801.1,2800.1,12.81769738]
[1769382793450,0.44625102,2801.0,2800.1,12.81769738]
[1769382793611,12.53690413,2801.4,2799.7,0.89295265]
[1769382793612,0.128,2801.7,2800.4,30.0]
[1769382793816,7.57489927,2802.6,2801.0,12.81769738]
[1769382794018,4.00668978,2802.3,2801.0,12.81769738]
[1769382794311,4.00668978,2802.3,2801.0,13.71021274]
[1769382794515,2.10038322,2802.5,2801.0,13.71021274]
[1769382794744,0.748,2802.5,2801.2,12.81769738]
[1769382795644,0.89197972,2802.8,2801.2,12.81769738]
[1769382795848,0.748,2802.7,2801.2,12.81769738]
[1769382796216,1.64000488,2802.7,2801.4,12.837202]
[1769382796617,0.89200488,2802.7,2801.4,12.837202]
[1769382796814,1.64000488,2802.7,2801.5,1.37296448]
[1769382798342,0.748,2802.7,2801.5,1.37296448]
[1769382798648,1.63999782,2802.7,2801.5,1.37296448]
[1769382800254,1.63999782,2802.7,2801.5,2.26534113]
[1769382800453,1.63999782,2802.7,2801.5,2.26533863]
[1769382800621,0.128,2803.2,2801.8,12.837202]
[1769382800819,11.857939,2803.8,2801.8,12.837202]
[1769382800820,0.89151986,2804.2,2802.1,12.837202]
[1769382801046,1.63851986,2804.2,2802.3,12.82827215]
[1769382801244,1.70625383,2804.1,2802.7,12.837202]
[1769382802140,13.56419283,2804.1,2802.4,14.12002922]
[1769382802326,11.857939,2803.9,2802.5,0.89206066]
[1769382802647,11.857939,2803.9,2802.4,2.1749153]
[1769382802855,11.857939,2803.9,2802.4,0.89208808]
[1769382803433,11.857939,2803.9,2802.4,13.72929008]
[1769382804564,12.749585,2803.9,2802.4,13.72929008]
[1769382805666,0.001,2803.7,2802.4,13.72929008]
[1769382808186,11.858939,2803.7,2801.7,16.40834502]
[1769382808367,11.857939,2803.5,2801.9,0.89222945]
[1769382808675,12.74971327,2803.4,2801.9,0.89225071]
[1769382808988,12.604939,2803.3,2801.7,0.89431372]
[1769382809293,12.604939,2803.3,2801.8,13.72948412]
[1769382810296,11.857939,2803.3,2801.8,13.72948412]
[1769382810467,13.87991033,2803.2,2801.7,0.89431476]
[1769382810789,12.74980871,2803.1,2801.7,0.002]
[1769382811248,12.74980871,2803.1,2801.7,12.839202]
[1769382812977,2.16680925,2803.2,2801.8,13.72948553]
[1769382813177,13.57874498,2803.2,2801.7,0.002]
[1769382813366,13.57874498,2803.2,2801.7,0.89431327]
[1769382813561,13.57874498,2803.2,2801.7,0.002]
[1769382813963,12.68690706,2803.1,2801.7,0.002]
[1769382814165,12.68690706,2802.9,2801.7,0.002]
[1769382814557,0.747,2802.8,2801.7,12.52557324]
[1769382814976,0.891997,2802.7,2801.7,12.52557324]
[1769382815159,0.891997,2802.7,2801.7,0.002]
[1769382815160,13.57890406,2802.7,2801.7,0.002]
[1769382815350,14.47628433,2802.6,2801.7,0.002]
[1769382815551,14.47628433,2802.6,2801.5,0.002]
[1769382816277,12.68690706,2802.4,2800.3,0.89476054]
[1769382816484,12.68690706,2802.0,2800.3,0.002]
[1769382816658,12.68690706,2801.8,2800.3,0.002]
[1769382816855,12.68690706,2801.6,2800.4,1.25255732]
[1769382817082,0.89237908,2801.5,2800.4,1.25255732]
[1769382817480,13.57928614,2801.5,2800.4,1.25255732]
[1769382817686,13.57928614,2801.5,2800.3,0.002]
[1769382820386,0.747,2801.4,2800.3,12.52557324]
[1769382820687,1.63937908,2801.5,2800.3,12.52557324]
[1769382821077,3.56951066,2801.6,2800.3,12.52557324]
[1769382821278,1.32752486,2801.5,2800.4,1.34183469]
[1769382821877,1.32752486,2801.5,2800.4,13.86540793]
[1769382822078,2.23572356,2801.7,2800.4,13.86540793]
[1769382822409,0.89233285,2801.7,2800.4,13.86540793]
[1769382823195,3.56915045,2801.8,2800.4,14.75811569]
[1769382823565,3.56915045,2801.8,2800.4,13.86540793]
[1769382824798,16.25605751,2801.8,2800.4,13.86540793]
[1769382825302,12.68690706,2801.7,2800.3,0.002]
[1769382826263,3.56905606,2802.1,2800.3,0.002]
[1769382826264,0.128,2802.4,2801.1,12.52357324]
[1769382826588,0.001,2802.5,2801.3,12.52357324]
[1769382827167,0.001,2802.5,2801.5,12.52357324]
[1769382827365,0.001,2802.5,2801.6,13.86517166]
[1769382827772,0.89185475,2803.2,2801.7,12.52357324]
[1769382829677,0.89180608,2803.3,2801.8,0.89228353]
[1769382829870,0.001,2802.4,2801.8,13.41585677]
[1769382831581,0.89180608,2803.3,2801.9,12.75714354]
[1769382831908,2.60642868,2803.2,2802.0,2.18135636]
[1769382832287,1.7145816,2803.2,2802.0,2.18135636]
[1769382832486,2.60641986,2803.2,2802.0,1.28915592]
[1769382833509,2.60641986,2803.2,2802.0,2.18137164]
[1769382834012,15.29332692,2803.2,2802.0,0.54215592]
[1769382834177,1.88606088,2803.1,2801.9,1.63924568]
[1769382834608,1.88606088,2803.1,2802.0,0.89221659]
[1769382834910,1.88606088,2803.1,2801.9,1.63923313]
[1769382835109,1.88606088,2803.1,2801.9,0.89223313]
[1769382835711,14.57296794,2803.1,2801.8,13.27057324]
[1769382836008,2.43841145,2803.0,2801.9,1.41628654]
[1769382836808,15.12531851,2803.0,2801.9,1.41628654]
[1769382837312,15.12531851,2803.0,2801.8,12.52357324]
[1769382838783,15.12531851,2803.0,2801.8,13.41584962]
[1769382839119,15.12531851,2803.0,2801.8,13.415845]
[1769382839684,15.12531851,2803.0,2801.8,12.52357324]
[1769382839906,15.12531851,2803.0,2801.8,13.41585093]
[1769382840095,1.8692838,2802.9,2801.9,1.34158509]
[1769382840496,2.76123193,2802.9,2801.9,1.34158509]
[1769382840980,1.8692838,2802.9,2801.9,1.34158509]
[1769382841415,0.89180608,2803.3,2802.0,12.53336461]
[1769382841614,13.57870455,2803.4,2802.0,12.52357324]
[1769382841815,12.68690706,2803.4,2802.0,12.52357324]
[1769382842114,0.001,2802.8,2802.2,12.52357324]
[1769382842284,0.747,2803.6,2802.4,12.52357324]
[1769382842486,1.63871335,2803.6,2802.5,13.4156339]
[1769382842720,0.747,2803.6,2802.5,13.4156339]
[1769382843214,1.63872232,2803.6,2802.5,12.52357324]
[1769382843415,1.63872232,2803.6,2802.5,13.86515833]
[1769382844689,1.63871797,2803.6,2802.5,13.86515833]
[1769382845112,0.747,2803.6,2802.5,14.75720833]
[1769382845416,1.63871202,2803.6,2802.5,14.75720833]
[1769382845589,14.33494977,2803.6,2802.5,1.34158509]
[1769382845788,14.33494977,2803.6,2802.3,0.89211707]
[1769382846820,14.33494977,2803.6,2802.2,0.747]
[1769382847288,14.33494977,2803.6,2802.1,1.63917153]
[1769382847491,12.69623775,2803.4,2802.0,0.749]
[1769382847703,12.69623775,2803.4,2802.0,1.64121494]
[1769382848496,12.69623775,2803.4,2802.0,0.749]
[1769382849104,0.89180608,2803.3,2802.0,0.749]
[1769382849307,13.58804383,2803.3,2802.0,0.749]
[1769382849513,14.41176457,2803.2,2802.0,1.64121575]
[1769382849701,14.41176457,2803.2,2802.0,0.749]
[1769382850228,14.41176457,2803.2,2802.0,1.64121851]
[1769382850625,1.71552682,2803.2,2802.0,14.33752289]
[1769382850826,12.69623775,2803.2,2802.0,0.002]
[1769382851226,0.89186971,2803.1,2802.0,0.002]
[1769382851402,13.58810746,2803.1,2802.0,0.002]
[1769382854158,13.58810746,2803.1,2802.2,0.002]
[1769382855258,13.58810746,2803.1,2802.0,0.002]
[1769382855421,12.69623775,2802.9,2802.0,0.002]
[1769382857358,0.89196517,2802.8,2802.0,0.002]
[1769382860950,0.89195571,2802.9,2802.0,12.95893456]
[1769382866368,0.001,2802.7,2802.2,0.002]
[1769382866571,12.9043015,2802.7,2802.2,0.002]
[1769382866776,1.29043015,2802.6,2802.2,0.002]
[1769382866946,0.001,2802.7,2802.2,0.002]
[1769382867941,0.892997,2802.7,2802.2,0.002]
[1769382868178,0.001,2802.7,2802.2,0.002]
[1769382870480,12.9043015,2802.7,2802.0,0.002]
[1769382871184,12.9043015,2802.7,2801.8,0.002]
[1769382871359,12.9033015,2802.5,2800.9,12.95693456]
[1769382871555,12.9033015,2802.3,2800.9,12.95693456]
[1769382872582,12.9033015,2802.1,2800.8,0.002]
[1769382873371,12.9033015,2802.1,2800.8,12.06913687]
[1769382873573,0.89215616,2802.2,2801.0,12.06713687]
[1769382873778,13.22606314,2802.4,2801.0,12.06713687]
[1769382873978,1.75413322,2802.3,2801.2,12.06713687]
[1769382874380,0.89215616,2802.2,2801.2,12.06713687]
[1769382876874,2.64627905,2802.3,2801.2,12.06713687]
[1769382877555,12.33394674,2802.2,2800.8,0.002]
[1769382877889,12.33394674,2801.9,2800.8,0.002]
[1769382878182,12.33394674,2801.7,2800.8,0.002]
[1769382878650,12.33394674,2801.5,2800.8,7.89e-06]
[1769382878847,1.3226294,2801.4,2800.8,7.89e-06]
[1769382879275,1.3226294,2801.4,2801.1,0.001]
[1769382879871,1.3226294,2801.4,2801.1,3.94e-06]
[1769382880889,2.21505275,2801.4,2801.1,3.94e-06]
[1769382881805,14.54899949,2801.4,2800.8,7.89e-06]
[1769382882008,14.54899949,2801.4,2800.0,0.002]
[1769382882009,12.33394674,2801.2,2800.0,0.002]
[1769382882389,12.33394674,2801.0,2800.0,0.002]
[1769382883104,13.22651698,2800.9,2800.0,0.002]
[1769382883403,1.67967561,2800.8,2800.0,0.002]
[1769382884089,5.47967561,2800.8,2800.0,0.002]
[1769382885992,3.8,2800.8,2800.0,0.002]
[1769382886588,4.69260821,2800.8,2800.0,0.002]
[1769382886788,3.8,2800.8,2800.0,0.002]
[1769382887589,12.33394674,2801.2,2800.0,0.002]
[1769382887590,0.89248842,2801.2,2800.1,12.06713687]
[1769382887763,1.69127565,2801.2,2800.2,13.27405056]
[1769382890698,0.79878723,2801.2,2800.2,13.27405056]
[1769382891001,14.10232582,2801.5,2800.2,13.27605056]
[1769382891304,13.97432582,2801.5,2800.2,13.27605056]
[1769382891797,13.22632582,2801.5,2800.2,13.27605056]
[1769382893305,13.22632582,2801.5,2800.2,1.20891369]
[1769382893495,13.22632582,2801.5,2800.2,0.002]
[1769382894404,0.748,2801.4,2800.2,12.06913687]
[1769382894703,12.33394674,2801.3,2800.2,12.06913687]
[1769382896605,0.89247465,2801.2,2800.2,12.06913687]
[1769382896791,2.64690549,2801.2,2800.2,13.27625056]
[1769382897892,1.75443084,2801.2,2800.2,13.27625056]
[1769382898603,2.64691228,2801.2,2800.2,13.27625056]
[1769382898777,0.89248144,2801.2,2800.2,13.27625056]
[1769382900168,1.64034723,2801.7,2800.2,13.27625056]
[1769382900369,13.22619842,2801.9,2800.2,14.16901802]
[1769382900565,0.89231537,2801.7,2800.4,12.06713687]
[1769382900791,13.22626211,2801.7,2800.4,12.81513687]
[1769382901614,13.22626211,2801.7,2800.4,13.70786445]
[1769382901903,13.22626211,2801.7,2800.4,12.81513687]
[1769382902113,13.22626211,2801.7,2800.2,0.002]
[1769382902271,13.22626211,2801.7,2800.0,0.002]
[1769382902272,12.33394674,2801.0,2800.0,0.002]
[1769382902466,0.128,2801.1,2798.9,12.06713687]
[1769382902467,12.33394674,2800.6,2798.9,12.06713687]
[1769382902711,12.33394674,2800.4,2798.9,12.06713687]
[1769382903012,12.33394674,2800.2,2798.8,0.002]
[1769382903215,12.87640747,2799.7,2798.0,0.002]
[1769382903385,12.87640747,2799.2,2798.0,0.002]
[1769382903722,0.748,2799.3,2798.1,12.84602849]
[1769382903870,13.62440747,2799.6,2798.2,1.28480285]
[1769382904280,13.62440747,2799.6,2798.0,0.002]
[1769382904281,12.87640747,2799.4,2798.0,0.002]
[1769382905014,12.87640747,2799.2,2798.0,0.002]
[1769382905516,12.87640747,2798.7,2797.7,0.002]
[1769382905678,12.87640747,2798.5,2797.5,0.002]
[1769382907011,0.89336763,2798.4,2797.5,0.002]
[1769382907221,0.89325991,2798.8,2797.5,11.95457547]
[1769382907514,13.76963683,2798.9,2797.5,11.95457547]
[1769382908088,13.62440747,2798.8,2797.5,0.002]
[1769382909508,12.87640747,2798.6,2797.5,0.002]
[1769382909706,14.2533754,2798.5,2797.5,0.002]
[1769382910314,0.748,2798.4,2797.5,0.002]
[1769382911090,13.62440747,2798.4,2797.5,0.002]
[1769382911290,0.89343149,2798.2,2797.5,0.002]
[1769382912517,0.748,2798.3,2797.5,0.002]
[1769382913420,0.89343149,2798.2,2797.5,0.002]
[1769382914398,0.89336763,2798.4,2797.5,0.002]
[1769382914598,0.89311231,2799.2,2797.5,11.95457547]
[1769382914787,0.89311231,2799.2,2797.8,11.95257547]
[1769382914982,12.87640747,2799.6,2797.8,11.95257547]
[1769382914983,0.001,2799.0,2797.8,11.95257547]
[1769382915190,0.001,2799.0,2798.0,11.95257547]
[1769382915616,0.001,2799.0,2797.9,1.19545755]
[1769382915785,0.001,2799.0,2797.7,11.95457547]
[1769382915991,12.87640747,2798.8,2797.7,0.002]
[1769382916298,12.87640747,2798.6,2797.5,0.002]
[1769382916500,12.87640747,2798.6,2797.3,11.95457547]
[1769382916501,12.87640747,2798.6,2797.3,11.94766825]
[1769382916720,12.87640747,2798.6,2797.3,12.84137971]
[1769382916915,1.36244075,2798.5,2797.4,2.17781542]
[1769382917132,1.36244075,2798.5,2797.4,13.23671344]
[1769382917329,0.748,2798.7,2797.4,13.23671344]
[1769382917720,0.89330379,2798.6,2797.4,13.23671344]
[1769382918539,0.89330379,2798.6,2797.1,11.76965761]
[1769382918540,13.59500209,2798.6,2797.1,11.76965761]
[1769382918740,12.7016983,2798.4,2796.9,0.002]
[1769382919437,12.7016983,2798.4,2796.9,11.77165761]
[1769382920012,0.89339956,2798.3,2796.9,11.77165761]
[1769382920214,1.71686961,2798.2,2797.0,1.2665536]
[1769382921223,1.71686961,2798.2,2797.0,13.03621121]
[1769382921943,2.61030288,2798.2,2797.1,0.89378284]
[1769382922235,1.71686961,2798.2,2797.0,13.93000681]
[1769382922546,1.02219133,2799.0,2797.5,11.76965761]
[1769382922844,0.89418967,2799.0,2797.7,11.76965761]
[1769382923025,0.89417868,2799.0,2797.7,11.76965761]
[1769382923357,0.001,2799.0,2797.8,12.33793411]
[1769382924052,0.001,2799.0,2798.0,11.76965761]
[1769382926863,0.001,2799.0,2798.0,12.66314899]
[1769382927045,0.892977,2799.7,2798.3,11.76965761]
[1769382927354,0.001,2798.8,2798.3,11.76965761]
[1769382927556,2.11123217,2799.8,2798.1,1.5001239]
[1769382927557,14.81293047,2799.8,2798.2,11.76965761]
[1769382927776,12.7016983,2799.3,2797.3,12.66335686]
[1769382927923,12.7016983,2799.1,2797.4,0.89367137]
[1769382928129,12.7016983,2799.1,2797.4,0.89366999]
[1769382928368,12.7016983,2798.9,2797.4,0.89366999]
[1769382928732,3.8,2798.9,2797.3,11.76965761]
[1769382928924,0.89317613,2799.0,2797.0,0.002]